bitfinex/quotes_ETHUSD_20230119
["timestamp","ask_amount","ask_price","bid_price","bid_amount"]
[1674116108522,19.81177169,1531.0,1530.8,19.59759]
[1674116108861,1.21137169,1531.0,1530.8,19.66237328]
[1674116109094,1.14537169,1531.0,1530.8,19.66237328]
[1674116115080,0.11775479,1531.0,1530.8,19.66237328]
[1674116116919,0.11775479,1531.0,1530.8,21.75989873]
[1674116117167,0.11775479,1531.0,1530.8,26.33464632]
[1674116117391,0.11775479,1531.0,1530.9,1.0]
[1674116117710,0.11775479,1531.0,1530.9,14.0642]
[1674116117868,0.11775479,1531.0,1530.9,14.12898328]
[1674116118077,0.11775479,1531.0,1530.9,15.86236191]
[1674116127429,1e-08,1531.0,1530.9,15.86236191]
[1674116132308,8.2315,1531.3,1531.0,0.00290058]
[1674116132638,8.2315,1531.3,1531.1,6.53125]
[1674116132846,0.066,1531.3,1531.1,13.12728328]
[1674116132997,10.17902067,1531.4,1531.1,15.28939292]
[1674116134856,10.17902067,1531.4,1531.1,15.28739292]
[1674116135157,10.17902067,1531.4,1531.1,15.28939292]
[1674116136718,10.66882067,1531.4,1531.1,15.28939292]
[1674116136909,10.17902067,1531.4,1531.1,15.28939292]
[1674116137431,11.54293752,1531.4,1531.1,15.28939292]
[1674116138274,10.17902067,1531.4,1531.1,15.28939292]
[1674116138479,10.17902067,1531.4,1531.2,1.52893929]
[1674116138688,10.17902067,1531.4,1531.2,6.5308]
[1674116139059,10.17902067,1531.4,1531.2,6.59558328]
[1674116139258,0.21792067,1531.4,1531.2,6.59558328]
[1674116139410,0.15192067,1531.4,1531.2,6.59558328]
[1674116142245,0.15192067,1531.4,1531.2,0.06478328]
[1674116142454,0.15192067,1531.4,1531.1,13.32322853]
[1674116142708,0.15192067,1531.4,1531.1,15.43093011]
[1674116143137,0.15192067,1531.4,1531.1,0.26072853]
[1674116143471,13.06164,1531.2,1531.1,0.19594525]
[1674116143677,17.44155685,1531.2,1531.1,0.19594525]
[1674116143831,21.61389546,1531.2,1531.1,0.19594525]
[1674116144028,26.37229948,1531.2,1531.1,0.19594525]
[1674116145408,28.93529948,1531.2,1531.1,0.19594525]
[1674116145616,32.01469161,1531.2,1531.1,0.19594525]
[1674116145831,31.21428578,1531.2,1531.1,0.19594525]
[1674116146914,29.16875633,1531.2,1531.1,0.19594525]
[1674116147128,31.21428578,1531.2,1531.1,0.19594525]
[1674116147303,29.16875633,1531.2,1531.1,0.19594525]
[1674116148915,28.51469161,1531.2,1531.1,0.19594525]
[1674116149075,29.16875633,1531.2,1531.1,0.19594525]
[1674116150328,28.51469161,1531.2,1531.1,0.19594525]
[1674116151018,29.16875633,1531.2,1531.1,0.19594525]
[1674116151723,32.66875633,1531.2,1531.1,4.525e-05]
[1674116151893,14.0625,1531.1,1531.0,0.00290058]
[1674116152113,40.12942322,1531.1,1531.0,0.00290058]
[1674116152278,1.0,1531.0,1530.3,0.06661405]
[1674116152478,1.28,1530.6,1530.3,0.06661405]
[1674116155785,7.81343,1530.6,1530.3,0.06661405]
[1674116155974,9.82554122,1530.6,1530.3,0.06661405]
[1674116156939,1.284,1530.4,1530.3,0.06661405]
[1674116157152,18.92820759,1530.4,1530.3,0.06661405]
[1674116157303,22.64827231,1530.4,1530.3,0.06661405]
[1674116157762,31.40057231,1530.4,1530.3,0.06661405]
[1674116158007,35.19404254,1530.4,1530.3,0.06661405]
[1674116158456,35.68414254,1530.4,1530.3,0.06661405]
[1674116160625,36.96814254,1530.4,1530.3,0.06661405]
[1674116161076,40.46814254,1530.4,1530.3,0.06661405]
[1674116161503,36.96814254,1530.4,1530.3,0.06661405]
[1674116162553,40.46814254,1530.4,1530.3,0.06661405]
[1674116162779,36.96814254,1530.4,1530.3,0.06661405]
[1674116163046,40.46814254,1530.4,1530.3,0.06661405]
[1674116163240,40.69814254,1530.4,1530.3,0.06661405]
[1674116163394,41.97414254,1530.4,1530.3,0.06661405]
[1674116163607,1.0,1530.3,1530.2,0.06442458]
[1674116163873,29.38120138,1530.3,1530.2,0.06442458]
[1674116164056,30.1012661,1530.3,1530.2,0.06442458]
[1674116164894,26.6012661,1530.3,1530.2,0.06442458]
[1674116165115,36.4293661,1530.3,1530.2,0.06442458]
[1674116165855,39.9293661,1530.3,1530.2,0.06442458]
[1674116168549,38.6453661,1530.3,1530.2,0.06442458]
[1674116171415,39.9293661,1530.3,1530.2,4.58e-06]
[1674116171659,39.9273661,1530.3,1530.1,0.06891571]
[1674116171981,23.69080322,1530.2,1530.1,0.06891571]
[1674116172188,39.05870322,1530.2,1530.1,0.06891571]
[1674116172353,39.71276794,1530.2,1530.1,0.06891571]
[1674116172569,32.38076794,1530.2,1530.1,0.06891571]
[1674116172907,35.88076794,1530.2,1530.1,0.06891571]
[1674116173843,1.0,1530.1,1530.0,0.07352162]
[1674116174054,1.0,1530.1,1529.8,0.07656066]
[1674116174055,27.14376,1530.0,1529.8,0.07656066]
[1674116174352,18.13048759,1529.9,1529.8,0.07656066]
[1674116174502,22.34085231,1529.9,1529.8,0.07656066]
[1674116174688,26.13432254,1529.9,1529.8,0.07656066]
[1674116177795,24.36832254,1529.9,1529.8,0.07656066]
[1674116180660,17.58627495,1529.9,1529.8,0.94156066]
[1674116180985,12.45747438,1529.9,1529.8,0.07656066]
[1674116181713,16.40328669,1529.9,1529.8,0.07656066]
[1674116182498,17.93228669,1529.9,1529.8,0.07656066]
[1674116182712,25.69069071,1529.9,1529.8,0.07656066]
[1674116198476,25.69069071,1529.9,1529.5,0.05720996]
[1674116198477,33.6467049,1529.9,1529.5,0.05720996]
[1674116198643,28.71301317,1529.6,1529.5,0.05720996]
[1674116198839,38.80076076,1529.6,1529.5,0.05720996]
[1674116199045,43.21210111,1529.6,1529.5,0.05720996]
[1674116199508,41.080652,1529.6,1529.5,0.05720996]
[1674116200104,38.68568794,1529.6,1529.5,0.05720996]
[1674116201522,39.71210111,1529.6,1529.5,0.05720996]
[1674116201691,43.21210111,1529.6,1529.5,0.05720996]
[1674116201902,44.580652,1529.6,1529.5,0.05720996]
[1674116202140,43.21210111,1529.6,1529.5,0.05720996]
[1674116202658,39.71210111,1529.6,1529.5,0.05720996]
[1674116202874,38.68568794,1529.6,1529.5,0.05720996]
[1674116204938,38.03162322,1529.6,1529.5,0.05720996]
[1674116205265,38.68568794,1529.6,1529.5,0.05720996]
[1674116207939,43.21210111,1529.6,1529.5,0.05720996]
[1674116208097,46.116652,1529.6,1529.4,0.06826111]
[1674116208304,22.81803497,1529.5,1529.4,0.06826111]
[1674116208512,39.01495831,1529.5,1529.4,0.06826111]
[1674116208773,39.66902303,1529.5,1529.4,0.06826111]
[1674116208997,39.66902303,1529.5,1529.3,0.06802936]
[1674116208998,39.83647214,1529.5,1529.3,0.06802936]
[1674116209280,13.71079436,1529.4,1529.3,0.06802936]
[1674116209511,30.08381436,1529.4,1529.3,0.06802936]
[1674116209667,30.73787908,1529.4,1529.3,0.06802936]
[1674116210142,29.71353145,1529.4,1529.3,0.06802936]
[1674116210309,29.86180852,1529.4,1529.3,0.06802936]
[1674116210941,28.18416989,1529.4,1529.3,0.06802936]
[1674116211151,28.83823461,1529.4,1529.3,0.06802936]
[1674116211566,29.86180852,1529.4,1529.3,0.06802936]
[1674116211978,28.83823461,1529.4,1529.3,0.06802936]
[1674116212981,28.18416989,1529.4,1529.3,0.06802936]
[1674116213182,28.83823461,1529.4,1529.3,0.06802936]
[1674116218337,1.0,1529.3,1529.2,2.96e-06]
[1674116218562,21.92710931,1529.3,1529.2,2.96e-06]
[1674116218708,22.64717403,1529.3,1529.2,2.96e-06]
[1674116225180,21.11117403,1529.3,1529.2,2.96e-06]
[1674116227715,20.88117403,1529.3,1529.2,2.96e-06]
[1674116229449,22.41017403,1529.3,1529.2,2.96e-06]
[1674116229661,22.64017403,1529.3,1529.2,2.96e-06]
[1674116231780,23.66374794,1529.3,1529.2,2.96e-06]
[1674116232201,22.64017403,1529.3,1529.2,2.96e-06]
[1674116233208,21.11117403,1529.3,1529.2,2.96e-06]
[1674116233716,22.63717403,1529.3,1529.2,2.96e-06]
[1674116233869,23.66074794,1529.3,1529.2,2.96e-06]
[1674116236006,24.00297087,1529.3,1529.2,2.96e-06]
[1674116237966,24.34786264,1529.3,1529.2,2.96e-06]
[1674116238809,11.79,1529.2,1528.8,0.0040397]
[1674116239014,44.14784896,1529.1,1528.8,0.0040397]
[1674116239229,44.86791368,1529.1,1528.8,0.0040397]
[1674116239495,45.89342748,1529.1,1528.8,0.0040397]
[1674116240070,44.86791368,1529.1,1528.8,0.0040397]
[1674116240281,48.67186519,1529.1,1528.8,0.0040397]
[1674116241068,48.01780047,1529.1,1528.8,0.0040397]
[1674116241272,48.67186519,1529.1,1528.8,0.0040397]
[1674116242448,48.01780047,1529.1,1528.8,0.0040397]
[1674116243244,48.67200323,1529.1,1528.8,0.0040397]
[1674116243894,47.64611427,1529.1,1528.8,0.0040397]
[1674116245392,48.67217269,1529.1,1528.8,0.0040397]
[1674116245817,47.64611427,1529.1,1528.8,0.0040397]
[1674116246558,46.11011427,1529.1,1528.8,0.0040397]
[1674116247250,45.88011427,1529.1,1528.8,0.0040397]
[1674116247465,46.90687722,1529.1,1528.8,0.0040397]
[1674116247886,45.88011427,1529.1,1528.8,0.0040397]
[1674116248668,46.11011427,1529.1,1528.8,0.0040397]
[1674116249601,47.81966598,1529.1,1528.8,0.0040397]
[1674116250217,46.45202461,1529.1,1528.8,0.0040397]
[1674116252635,47.82128533,1529.1,1528.8,0.0040397]
[1674116253198,46.45202461,1529.1,1528.8,0.0040397]
[1674116254359,44.7424729,1529.1,1528.8,0.0040397]
[1674116256967,47.98266098,1529.1,1528.8,0.0040397]
[1674116257134,47.98266115,1529.1,1528.8,0.0040397]
[1674116259919,47.9825532,1529.1,1528.8,0.0040397]
[1674116260149,46.2714729,1529.1,1528.8,0.0040397]
[1674116260374,47.98271126,1529.1,1528.8,0.0040397]
[1674116260952,46.2714729,1529.1,1528.8,0.0040397]
[1674116261190,48.31700235,1529.1,1528.8,0.0040397]
[1674116261626,1.0,1529.0,1528.8,0.0040397]
[1674116261848,31.05296266,1528.9,1528.8,0.0040397]
[1674116262060,34.77302738,1528.9,1528.8,0.0040397]
[1674116262388,34.43097491,1528.9,1528.8,0.0040397]
[1674116262738,33.77691019,1528.9,1528.8,0.0040397]
[1674116262949,34.56841191,1528.9,1528.8,0.0040397]
[1674116263170,35.22247663,1528.9,1528.8,0.0040397]
[1674116264020,36.5910917,1528.9,1528.8,0.0040397]
[1674116264886,35.5645291,1528.9,1528.8,0.0040397]
[1674116265108,34.91046438,1528.9,1528.8,0.0040397]
[1674116265322,68.09404348,1528.9,1528.6,0.10860151]
[1674116265651,17.29174759,1528.7,1528.4,0.12268484]
[1674116265815,18.76878309,1528.5,1528.4,0.12268484]
[1674116266025,17.80950502,1528.5,1528.4,0.12006285]
[1674116266241,17.80950502,1528.5,1528.2,0.12556077]
[1674116266242,36.24726974,1528.5,1528.2,0.12556077]
[1674116266454,11.13874995,1528.3,1527.9,0.8473188]
[1674116266664,3.16618682,1528.0,1527.9,0.8473188]
[1674116266882,5.8624649,1528.0,1527.9,0.8473188]
[1674116267061,0.066,1528.0,1527.9,0.8473188]
[1674116267432,6.5445,1528.0,1527.9,0.93205068]
[1674116267605,19.44674759,1528.0,1527.9,0.8473188]
[1674116267816,20.10081231,1528.0,1527.9,0.8473188]
[1674116268258,20.33081231,1528.0,1527.9,0.8473188]
[1674116268464,23.82637154,1528.0,1527.9,0.8473188]
[1674116271687,25.36237154,1528.0,1527.9,0.8473188]
[1674116271899,25.85327154,1528.0,1527.9,0.8473188]
[1674116272417,25.85327154,1528.0,1527.6,0.0046101]
[1674116272418,25.36237154,1528.0,1527.6,0.0046101]
[1674116272680,26.1814,1527.8,1527.6,0.0046101]
[1674116272891,21.87340247,1527.7,1527.6,0.0046101]
[1674116273099,23.24753191,1527.7,1527.6,0.0046101]
[1674116273311,22.59346719,1527.7,1527.6,0.0046101]
[1674116274375,24.11946719,1527.7,1527.6,0.0046101]
[1674116274525,28.03846719,1527.7,1527.6,0.0046101]
[1674116275524,24.11946719,1527.7,1527.6,0.0046101]
[1674116275836,22.59346719,1527.7,1527.6,0.0046101]
[1674116276372,20.10337231,1527.7,1527.6,0.9656101]
[1674116276691,16.44930759,1527.7,1527.6,0.0046101]
[1674116277788,19.44930759,1527.7,1527.6,0.0046101]
[1674116278014,19.44930759,1527.7,1527.6,0.9656101]
[1674116278225,19.44930759,1527.7,1527.6,0.0046101]
[1674116278453,19.44930759,1527.7,1527.6,0.9656101]
[1674116278647,19.44930759,1527.7,1527.6,0.0046101]
[1674116278831,19.44930759,1527.7,1527.6,0.9656101]
[1674116279044,19.44930759,1527.7,1527.6,0.0046101]
[1674116279731,22.76871482,1527.7,1527.6,0.0046101]
[1674116279890,23.42277954,1527.7,1527.6,0.0046101]
[1674116280096,20.10337231,1527.7,1527.6,0.0046101]
[1674116280346,13.81162472,1527.7,1527.6,0.0046101]
[1674116280556,0.066,1527.7,1527.6,3.4346101]
[1674116280886,13.15641,1527.9,1527.6,3.4346101]
[1674116281044,16.44815759,1527.9,1527.6,3.78454944]
[1674116281265,9.90293759,1527.9,1527.7,1.53]
[1674116282303,0.066,1527.9,1527.8,2.527]
[1674116282676,0.066,1528.1,1527.9,0.066]
[1674116282888,6.61003,1528.2,1528.0,1.53]
[1674116283112,0.066,1528.2,1528.1,1.536]
[1674116283408,0.066,1528.3,1528.1,3.2116]
[1674116283623,0.066,1528.5,1528.2,3.068]
[1674116283876,0.066,1528.5,1528.4,1.536]
[1674116283877,3.29174759,1528.5,1528.4,1.536]
[1674116284209,0.066,1528.6,1528.4,1.536]
[1674116284410,6.60785,1528.7,1528.4,1.536]
[1674116284616,3.35774759,1528.7,1528.5,1.529]
[1674116284881,3.29174759,1528.7,1528.6,1.536]
[1674116285070,6.60746,1528.8,1528.6,1.536]
[1674116285410,9.89920759,1528.8,1528.5,1.529]
[1674116287580,3.29174759,1528.7,1528.5,1.529]
[1674116287799,3.29174759,1528.6,1528.3,1.536]
[1674116288152,7.29174759,1528.5,1528.3,1.536]
[1674116288306,7.29174759,1528.5,1528.1,1.53]
[1674116288307,6.54278,1528.4,1528.1,1.53]
[1674116288517,3.29174759,1528.3,1527.9,0.13078328]
[1674116288836,3.29174759,1528.3,1527.9,0.066]
[1674116288837,13.08814,1528.1,1527.9,0.066]
[1674116289179,18.08387635,1528.1,1527.9,0.066]
[1674116289518,18.73794107,1528.1,1527.9,0.066]
[1674116290362,10.55588231,1528.1,1527.9,0.066]
[1674116290724,17.09995231,1528.1,1527.9,0.066]
[1674116291425,3.29174759,1528.0,1527.9,0.066]
[1674116291569,16.38074759,1528.0,1527.9,0.066]
[1674116291778,16.44674759,1528.0,1527.9,0.066]
[1674116292014,9.90224759,1528.0,1527.9,0.066]
[1674116292925,16.44674759,1528.0,1527.9,0.066]
[1674116293135,18.74582935,1528.0,1527.9,0.066]
[1674116293771,21.74582935,1528.0,1527.9,0.066]
[1674116294347,22.39989407,1528.0,1527.9,0.066]
[1674116295257,22.39989407,1528.0,1527.9,0.06332641]
[1674116296829,22.89079407,1528.0,1527.9,0.06332641]
[1674116297041,23.12079407,1528.0,1527.9,0.06332641]
[1674116297655,24.65679407,1528.0,1527.9,0.06332641]
[1674116300402,24.65679407,1528.0,1527.9,6.41e-06]
[1674116300617,1.0,1527.9,1527.6,0.16111367]
[1674116300821,13.09156,1527.7,1527.6,0.16111367]
[1674116301039,16.44930759,1527.7,1527.6,0.16111367]
[1674116301260,19.44930759,1527.7,1527.6,0.16111367]
[1674116301474,26.64915231,1527.7,1527.6,0.16111367]
[1674116301686,20.10337231,1527.7,1527.6,0.16111367]
[1674116301897,19.44930759,1527.7,1527.6,0.16111367]
[1674116302116,6.61178,1527.7,1527.6,0.16111367]
[1674116302445,13.15756,1527.7,1527.6,0.16111367]
[1674116302826,16.44930759,1527.7,1527.6,0.16111367]
[1674116304001,0.066,1527.7,1527.6,0.16111367]
[1674116304355,13.1575,1527.8,1527.6,0.16111367]
[1674116304671,16.44924759,1527.8,1527.6,0.16111367]
[1674116304986,6.61173,1527.8,1527.6,1.85992504]
[1674116305155,9.84486,1528.0,1527.8,1.14668411]
[1674116305366,3.366,1528.0,1527.9,1.64666841]
[1674116305576,3.3,1528.0,1527.9,3.18166841]
[1674116307045,2.61794238,1528.0,1527.9,4.18166841]
[1674116308008,2.61794238,1528.0,1527.9,3.18166841]
[1674116310887,2.61794238,1528.0,1527.8,2.74146739]
[1674116311033,18.99868997,1528.0,1527.8,1.14668411]
[1674116311242,19.06468997,1528.0,1527.8,1.14668411]
[1674116313821,19.55558997,1528.0,1527.8,1.14668411]
[1674116314143,19.06468997,1528.0,1527.8,1.14668411]
[1674116315646,9.22844238,1528.0,1527.9,1.521]
[1674116315907,2.68394238,1528.0,1527.9,1.521]
[1674116316118,2.61794238,1528.0,1527.9,1.521]
[1674116320183,15.70694238,1528.0,1527.8,2.68268411]
[1674116320536,15.77294238,1528.0,1527.8,1.14668411]
[1674116324060,19.06468997,1528.0,1527.8,1.14668411]
[1674116324273,21.34548821,1528.0,1527.8,1.14668411]
[1674116325215,19.06468997,1528.0,1527.8,1.14668411]
[1674116327474,19.06468997,1528.0,1527.8,1.14405748]
[1674116335430,19.06185387,1528.0,1527.8,1.14405748]
[1674116338513,3.29174759,1527.9,1527.8,1.14405748]
[1674116338700,16.38160759,1527.9,1527.8,1.14405748]
[1674116338918,19.76528934,1527.9,1527.8,1.14405748]
[1674116340381,22.76528934,1527.9,1527.8,1.14405748]
[1674116340703,23.25618934,1527.9,1527.8,1.14405748]
[1674116346448,24.9353577,1527.9,1527.8,1.14405748]
[1674116346662,27.83821619,1527.9,1527.8,1.14405748]
[1674116347239,26.81311255,1527.9,1527.8,1.14405748]
[1674116347624,26.81311255,1527.9,1527.8,1.13161233]
[1674116347969,27.83972576,1527.9,1527.8,1.13161233]
[1674116348126,26.81311255,1527.9,1527.8,1.13161233]
[1674116348605,27.83990794,1527.9,1527.8,1.13161233]
[1674116348968,26.47304945,1527.9,1527.8,1.13161233]
[1674116350866,24.93704945,1527.9,1527.8,1.13161233]
[1674116351074,16.80992472,1527.9,1527.8,1.13161233]
[1674116351358,16.15586,1527.9,1527.8,1.13161233]
[1674116353154,19.44760759,1527.9,1527.8,1.13161233]
[1674116353340,19.93850759,1527.9,1527.8,1.13161233]
[1674116353640,19.44760759,1527.9,1527.8,1.13161233]
[1674116353855,22.46009852,1527.9,1527.8,1.13161233]
[1674116354658,23.48689391,1527.9,1527.8,1.13161233]
[1674116356117,23.97779391,1527.9,1527.8,1.13161233]
[1674116356583,23.48689391,1527.9,1527.8,1.13161233]
[1674116360145,24.8537524,1527.9,1527.8,1.13161233]
[1674116362440,24.8537524,1527.9,1527.6,0.16111367]
[1674116362654,3.29174759,1527.8,1527.6,0.16111367]
[1674116362867,22.92908759,1527.7,1527.6,0.16111367]
[1674116363059,22.99508759,1527.7,1527.6,0.16111367]
[1674116369944,22.99508759,1527.7,1527.6,0.15885104]
[1674116380475,24.02188298,1527.7,1527.6,0.15885104]
[1674116380689,32.09088495,1527.7,1527.6,0.15885104]
[1674116380880,34.29068174,1527.7,1527.6,0.15885104]
[1674116381048,34.29406708,1527.7,1527.6,0.15885104]
[1674116381258,33.15382325,1527.7,1527.6,0.15885104]
[1674116381902,33.1577952,1527.7,1527.6,0.15885104]
[1674116384234,32.81455981,1527.7,1527.6,0.15885104]
[1674116384412,31.27855981,1527.7,1527.6,0.15885104]
[1674116387271,32.81455981,1527.7,1527.6,0.15885104]
[1674116388160,33.1577952,1527.7,1527.6,0.15885104]
[1674116389937,34.52617272,1527.7,1527.6,0.15885104]
[1674116390248,11.814,1527.6,1527.1,0.19034405]
[1674116390560,19.6425,1527.3,1527.1,0.12556077]
[1674116390788,3.29174759,1527.2,1527.1,0.12556077]
[1674116391082,16.38760759,1527.2,1527.1,0.12556077]
[1674116391261,16.45360759,1527.2,1527.1,0.12556077]
[1674116391467,17.10767231,1527.2,1527.1,0.12556077]
[1674116392200,18.07508083,1527.2,1527.1,0.12556077]
[1674116393186,21.07508083,1527.2,1527.1,0.12556077]
[1674116395821,13.81592472,1527.2,1527.1,1.08656077]
[1674116396022,16.395,1527.3,1527.2,0.61638827]
[1674116396023,3.3,1527.3,1527.2,0.61638827]
[1674116396178,3.3,1527.3,1527.2,0.84418317]
[1674116396869,3.3,1527.3,1527.2,0.61638827]
[1674116397601,9.8475,1527.3,1527.2,0.61638827]
[1674116397811,9.9135,1527.3,1527.2,0.61638827]
[1674116399752,9.90866756,1527.3,1527.2,0.61638827]
[1674116400068,20.40197987,1527.3,1527.2,0.61638827]
[1674116400439,23.90522086,1527.3,1527.2,0.61638827]
[1674116400963,26.90522086,1527.3,1527.2,0.61638827]
[1674116401491,27.39632086,1527.3,1527.2,0.61638827]
[1674116402289,26.74225614,1527.3,1527.2,0.61638827]
[1674116405476,23.23901515,1527.3,1527.2,0.61638827]
[1674116405695,20.23901515,1527.3,1527.2,0.61638827]
[1674116408148,16.45616756,1527.3,1527.2,0.61638827]
[1674116408574,9.90866756,1527.3,1527.2,0.61638827]
[1674116410359,3.36116756,1527.3,1527.2,0.61638827]
[1674116410566,3.29516756,1527.3,1527.2,2.22058317]
[1674116411673,3.29516756,1527.3,1527.2,3.22058317]
[1674116411850,3.29516756,1527.3,1527.2,2.22058317]
[1674116413359,3.29516756,1527.3,1527.2,3.22058317]
[1674116413725,2.08216991,1527.3,1527.2,3.22058317]
[1674116415441,2.08620961,1527.3,1527.2,3.22058317]
[1674116415651,2.08620961,1527.3,1527.2,10.9056575]
[1674116415885,2.08620961,1527.3,1527.2,10.96844078]
[1674116416101,2.08620961,1527.3,1527.2,10.97044078]
[1674116416246,2.08620961,1527.3,1527.2,3.28536645]
[1674116416458,2.08620961,1527.3,1527.2,3.22058317]
[1674116417120,2.08620961,1527.3,1527.2,20.74533723]
[1674116417450,2.08620961,1527.3,1527.2,19.53857292]
[1674116417610,2.08620961,1527.3,1527.2,4.91271292]
[1674116417975,2.08620961,1527.3,1527.2,4.84794851]
[1674116418353,2.08620961,1527.3,1527.2,16.94380851]
[1674116418559,2.08620961,1527.3,1527.2,17.00859179]
[1674116419208,2.08620961,1527.3,1527.2,10.46066096]
[1674116419428,2.08620961,1527.3,1527.2,3.91273096]
[1674116419733,2.08620961,1527.3,1527.2,2.21958317]
[1674116420345,2.08620961,1527.3,1527.2,3.35675354]
[1674116421389,0.066,1527.5,1527.2,9.90468354]
[1674116421606,0.066,1527.7,1527.4,1.53]
[1674116421877,15.21481,1527.8,1527.5,1.53]
[1674116422039,7.10271,1527.8,1527.6,0.153]
[1674116422253,0.557,1527.8,1527.6,1.674]
[1674116422610,0.491,1527.8,1527.6,1.674]
[1674116422796,13.15652,1527.9,1527.7,0.1674]
[1674116422797,14.67361314,1527.9,1527.7,0.1674]
[1674116423002,14.67361314,1527.9,1527.6,1.521]
[1674116423815,14.67361314,1527.9,1527.4,16.02082328]
[1674116424026,13.64742,1527.9,1527.4,16.02082328]
[1674116424648,14.67361314,1527.9,1527.4,16.02082328]
[1674116425025,14.67361314,1527.9,1527.5,1.60208233]
[1674116425699,13.64742,1527.9,1527.5,1.60208233]
[1674116425910,14.67361314,1527.9,1527.5,1.60208233]
[1674116426436,17.96536073,1527.9,1527.5,1.60208233]
[1674116426683,18.61942545,1527.9,1527.4,7.93798328]
[1674116426873,13.09174,1527.7,1527.4,7.93798328]
[1674116427098,13.15774,1527.7,1527.4,0.06478328]
[1674116427314,13.15774,1527.7,1527.3,0.99046835]
[1674116427963,13.15774,1527.7,1527.4,0.09904683]
[1674116428839,13.64874,1527.7,1527.4,0.09904683]
[1674116430698,7.10287,1527.7,1527.4,0.09904683]
[1674116431013,0.557,1527.7,1527.4,0.09904683]
[1674116431162,0.491,1527.7,1527.4,0.09904683]
[1674116432652,0.493,1527.7,1527.4,0.09904683]
[1674116432900,0.491,1527.7,1527.4,0.09904683]
[1674116433252,0.33072528,1527.6,1527.4,0.09904683]
[1674116433933,0.33072528,1527.6,1527.4,8.17483683]
[1674116434163,0.33072528,1527.6,1527.5,0.81748368]
[1674116435184,0.33072528,1527.6,1527.4,0.09904683]
[1674116435835,6.87696528,1527.6,1527.4,0.09904683]
[1674116436052,6.94296528,1527.6,1527.4,0.09904683]
[1674116436432,6.94296528,1527.6,1527.3,0.99046835]
[1674116437319,7.43396528,1527.6,1527.3,0.99046835]
[1674116437699,13.98020528,1527.6,1527.3,0.99046835]
[1674116437897,13.98020528,1527.6,1527.2,18.44707155]
[1674116438307,13.98020528,1527.6,1527.2,8.88727155]
[1674116439326,13.98020528,1527.6,1527.2,0.68117155]
[1674116439514,13.98020528,1527.6,1527.2,0.61638827]
[1674116442633,19.66640353,1527.6,1527.2,0.61638827]
[1674116443000,19.64121,1527.4,1527.2,0.61638827]
[1674116443164,19.70721,1527.4,1527.2,0.61638827]
[1674116443365,13.5861,1527.3,1527.2,0.61638827]
[1674116443581,13.6521,1527.3,1527.2,0.61638827]
[1674116444037,13.6521,1527.3,1527.2,0.61434909]
[1674116445936,18.96376459,1527.3,1527.2,0.61434909]
[1674116448680,19.98995773,1527.3,1527.2,0.61434909]
[1674116449042,18.96376459,1527.3,1527.2,0.61434909]
[1674116449272,19.98995773,1527.3,1527.2,0.61434909]
[1674116449829,18.96376459,1527.3,1527.2,0.61434909]
[1674116450566,21.96376459,1527.3,1527.2,0.61434909]
[1674116452087,16.94384759,1527.3,1527.2,0.61434909]
[1674116460341,16.94384759,1527.3,1527.1,0.12556077]
[1674116460342,7.1046,1527.3,1527.1,0.12556077]
[1674116460978,13.6521,1527.3,1527.1,0.12556077]
[1674116462248,0.066,1527.3,1527.1,0.12556077]
[1674116462608,25.62077,1527.4,1527.1,1.65556077]
[1674116462914,13.09508,1527.3,1527.1,0.12556077]
[1674116463126,13.16108,1527.3,1527.1,0.12556077]
[1674116464227,13.16108,1527.3,1527.1,0.30671475]
[1674116465383,6.6135,1527.3,1527.1,0.30671475]
[1674116465593,0.066,1527.3,1527.1,0.30671475]
[1674116465832,25.62077,1527.4,1527.1,0.30671475]
[1674116466027,25.61682399,1527.4,1527.1,0.30671475]
[1674116468028,17.49562399,1527.4,1527.1,0.30671475]
[1674116469371,24.04310399,1527.4,1527.1,0.12556077]
[1674116470845,0.4911,1527.3,1527.1,0.12556077]
[1674116471283,7.03875,1527.3,1527.1,0.12556077]
[1674116471527,7.10475,1527.3,1527.1,0.12556077]
[1674116471842,7.10475,1527.3,1527.1,0.30671475]
[1674116472934,6.42240615,1527.3,1527.1,0.30671475]
[1674116473085,6.53340615,1527.3,1527.1,0.30671475]
[1674116476028,6.91350615,1527.3,1527.1,0.30671475]
[1674116478379,10.21350615,1527.3,1527.1,0.30671475]
[1674116479356,3.366,1527.3,1527.2,1.536]
[1674116479510,3.3,1527.3,1527.2,3.37509847]
[1674116479949,2.08703036,1527.3,1527.2,11.06018751]
[1674116480189,2.08703036,1527.3,1527.2,11.12497079]
[1674116480370,2.08703036,1527.3,1527.2,10.12497079]
[1674116481504,2.08703036,1527.3,1527.2,0.90388175]
[1674116481714,2.08703036,1527.3,1527.1,1.84271475]
[1674116483113,2.08703036,1527.3,1527.1,0.30671475]
[1674116487296,2.08703036,1527.3,1527.1,6.85485475]
[1674116487620,2.08703036,1527.3,1527.1,7.91963803]
[1674116487990,2.08703036,1527.3,1527.1,6.91963803]
[1674116488163,2.08703036,1527.3,1527.2,0.6919638]
[1674116489346,2.08903036,1527.3,1527.2,0.6919638]
[1674116489495,2.08703036,1527.3,1527.2,0.6919638]
[1674116489832,2.08703036,1527.3,1527.2,1.82916701]
[1674116493386,2.08703036,1527.3,1527.2,0.6919638]
[1674116495222,2.08703036,1527.3,1527.2,0.6419638]
[1674116495646,2.08703036,1527.3,1527.2,1.77914832]
[1674116499934,0.87404965,1527.3,1527.2,1.77914832]
[1674116500812,0.87404965,1527.3,1527.2,3.46263876]
[1674116500965,0.87404965,1527.3,1527.2,18.43626083]
[1674116501173,0.87404965,1527.3,1527.2,21.7927917]
[1674116501530,0.33533538,1527.6,1527.3,3.17927917]
[1674116501845,0.33533538,1527.6,1527.5,9.07664]
[1674116502057,0.33533538,1527.6,1527.5,10.2786078]
[1674116502734,0.33533538,1527.6,1527.5,9.14142328]
[1674116502942,0.33533538,1527.6,1527.5,11.53558688]
[1674116503209,0.33533538,1527.6,1527.5,12.67252913]
[1674116504897,0.33533538,1527.6,1527.5,11.53558688]
[1674116505754,0.33533538,1527.6,1527.5,12.67251812]
[1674116505906,0.33533538,1527.6,1527.5,19.21915812]
[1674116507716,0.33533538,1527.6,1527.5,22.21915812]
[1674116508730,0.33533538,1527.6,1527.5,21.08222688]
[1674116509172,0.33533538,1527.6,1527.5,22.21910051]
[1674116509361,0.33533538,1527.6,1527.5,22.21911763]
[1674116510681,0.33533538,1527.6,1527.5,21.08222688]
[1674116510907,3.63533538,1527.6,1527.5,21.08222688]
[1674116512670,3.63533538,1527.6,1527.5,21.31222688]
[1674116513115,2.95319749,1527.6,1527.5,21.31222688]
[1674116516506,2.95319749,1527.6,1527.5,20.31222688]
[1674116517085,2.95319749,1527.6,1527.5,9.23558688]
[1674116517298,2.95319749,1527.6,1527.5,9.00558688]
[1674116518730,2.95319749,1527.6,1527.5,2.45894688]